fUSD/lending_fUSD_20260611
["ID","MTS","AMOUNT","RATE_DAILY","PERIOD"]
[424762586,1781133045000,-692.93,0.00014999,2]
[424762585,1781133045000,-692.93,0.00014999,2]
[424762587,1781133045000,-692.93,0.00014999,2]
[424762589,1781133045000,-692.93,0.00014999,2]
[424762588,1781133045000,-692.93,0.00014999,2]
[424762590,1781133045000,-692.93,0.00014999,2]
[424762592,1781133045000,-692.93,0.00014999,2]
[424762596,1781133045000,-692.93,0.00014999,2]
[424762575,1781133045000,-291.7680598,0.0001499,2]
[424762583,1781133045000,-692.93,0.00014999,2]
[424762568,1781133045000,-255.03691165,0.00014986,2]
[424762543,1781133045000,-5997.7219,0.000149,2]
[424762567,1781133045000,-284.66694044,0.00014986,2]
[424762594,1781133045000,-692.93,0.00014999,2]
[424762542,1781133045000,-33261.1868,0.000149,2]
[424762544,1781133045000,-2000.0,0.000149,2]
[424762545,1781133045000,-10000.0,0.000149,2]
[424762547,1781133045000,-2700.0,0.000149,5]
[424762551,1781133045000,-150.0,0.00014907,2]
[424762549,1781133045000,-150.0,0.00014903,2]
[424762552,1781133045000,-241.51080965,0.00014911,2]
[424762553,1781133045000,-241.51080965,0.00014926,2]
[424762548,1781133045000,-772.32739084,0.000149,2]
[424762550,1781133045000,-150.0,0.00014907,2]
[424762566,1781133045000,-190.96821533,0.00014986,2]
[424762546,1781133045000,-27614.3143597,0.000149,2]
[424762555,1781133045000,-241.51080965,0.00014941,2]
[424762556,1781133045000,-150.0,0.00014941,2]
[424762560,1781133045000,-150.0,0.00014959,2]
[424762558,1781133045000,-150.0,0.00014947,2]
[424762564,1781133045000,-225.2504377,0.00014986,2]
[424762557,1781133045000,-150.0,0.00014947,2]
[424762559,1781133045000,-241.51080965,0.00014956,2]
[424762563,1781133045000,-216.4332826,0.00014986,2]
[424762561,1781133045000,-369.0,0.00014959,2]
[424762565,1781133045000,-238.22574373,0.00014986,2]
[424762562,1781133045000,-241.51080965,0.00014971,2]
[424762554,1781133045000,-150.0,0.00014931,2]
[424762595,1781133045000,-692.93,0.00014999,2]
[424762640,1781133045000,-500.0,0.00014999,2]
[424762597,1781133045000,-693.00633207,0.00014999,2]
[424762627,1781133045000,-500.0,0.00014999,2]
[424762628,1781133045000,-500.0,0.00014999,2]
[424762630,1781133045000,-500.0,0.00014999,2]
[424762626,1781133045000,-500.0,0.00014999,2]
[424762629,1781133045000,-500.0,0.00014999,2]
[424762631,1781133045000,-500.0,0.00014999,2]
[424762632,1781133045000,-500.0,0.00014999,2]
[424762633,1781133045000,-500.0,0.00014999,2]
[424762634,1781133045000,-500.0,0.00014999,2]
[424762637,1781133045000,-500.0,0.00014999,2]
[424762635,1781133045000,-500.0,0.00014999,2]
[424762624,1781133045000,-500.0,0.00014999,2]
[424762636,1781133045000,-500.0,0.00014999,2]
[424762641,1781133045000,-500.0,0.00014999,2]
[424762642,1781133045000,-500.0,0.00014999,2]
[424762643,1781133045000,-500.0,0.00014999,2]
[424762646,1781133045000,-500.0,0.00014999,2]
[424762644,1781133045000,-500.0,0.00014999,2]
[424762648,1781133045000,-500.0,0.00014999,2]
[424762647,1781133045000,-500.0,0.00014999,2]
[424762645,1781133045000,-500.0,0.00014999,2]
[424762650,1781133045000,-500.0,0.00014999,2]
[424762649,1781133045000,-500.0,0.00014999,2]
[424762591,1781133045000,-692.93,0.00014999,2]
[424762638,1781133045000,-500.0,0.00014999,2]
[424762625,1781133045000,-500.0,0.00014999,2]
[424762639,1781133045000,-500.0,0.00014999,2]
[424762623,1781133045000,-500.0,0.00014999,2]
[424762598,1781133045000,-500.0,0.00014999,2]
[424762621,1781133045000,-500.0,0.00014999,2]
[424762599,1781133045000,-500.0,0.00014999,2]
[424762600,1781133045000,-500.0,0.00014999,2]
[424762601,1781133045000,-418.41732447,0.00014999,2]
[424762603,1781133045000,-500.0,0.00014999,2]
[424762605,1781133045000,-500.0,0.00014999,2]
[424762604,1781133045000,-500.0,0.00014999,2]
[424762608,1781133045000,-500.0,0.00014999,2]
[424762602,1781133045000,-500.0,0.00014999,2]
[424762607,1781133045000,-500.0,0.00014999,2]
[424762609,1781133045000,-500.0,0.00014999,2]
[424762606,1781133045000,-500.0,0.00014999,2]
[424762611,1781133045000,-500.0,0.00014999,2]
[424762622,1781133045000,-281.67279939,0.00014999,2]
[424762613,1781133045000,-500.0,0.00014999,2]
[424762620,1781133045000,-500.0,0.00014999,2]
[424762618,1781133045000,-500.0,0.00014999,2]
[424762617,1781133045000,-500.0,0.00014999,2]
[424762614,1781133045000,-500.0,0.00014999,2]
[424762619,1781133045000,-500.0,0.00014999,2]
[424762616,1781133045000,-500.0,0.00014999,2]
[424762610,1781133045000,-500.0,0.00014999,2]
[424762612,1781133045000,-537.14703498,0.00014999,2]
[424762615,1781133045000,-500.0,0.00014999,2]
[424762691,1781133046000,-500.0,0.00014999,2]
[424762690,1781133046000,-500.0,0.00014999,2]
[424762679,1781133046000,-500.0,0.00014999,2]
[424762687,1781133046000,-500.0,0.00014999,2]
[424762685,1781133046000,-500.0,0.00014999,2]
[424762684,1781133046000,-500.0,0.00014999,2]
[424762689,1781133046000,-500.0,0.00014999,2]
[424762682,1781133046000,-500.0,0.00014999,2]
[424762688,1781133046000,-500.0,0.00014999,2]
[424762686,1781133046000,-500.0,0.00014999,2]
[424762683,1781133046000,-500.0,0.00014999,2]
[424762693,1781133046000,-500.0,0.00014999,2]
[424762703,1781133046000,-500.0,0.00014999,2]
[424762699,1781133046000,-500.0,0.00014999,2]
[424762698,1781133046000,-500.0,0.00014999,2]
[424762694,1781133046000,-500.0,0.00014999,2]
[424762697,1781133046000,-500.0,0.00014999,2]
[424762696,1781133046000,-500.0,0.00014999,2]
[424762701,1781133046000,-500.0,0.00014999,2]
[424762695,1781133046000,-500.0,0.00014999,2]
[424762700,1781133046000,-500.0,0.00014999,2]
[424762702,1781133046000,-500.0,0.00014999,2]
[424762704,1781133046000,-500.0,0.00014999,2]
[424762680,1781133046000,-500.0,0.00014999,2]
[424762692,1781133046000,-500.0,0.00014999,2]
[424762678,1781133046000,-500.0,0.00014999,2]
[424762652,1781133046000,-500.0,0.00014999,2]
[424762675,1781133046000,-500.0,0.00014999,2]
[424762707,1781133046000,-500.0,0.00014999,2]
[424762651,1781133046000,-500.0,0.00014999,2]
[424762653,1781133046000,-500.0,0.00014999,2]
[424762654,1781133046000,-500.0,0.00014999,2]
[424762656,1781133046000,-500.0,0.00014999,2]
[424762657,1781133046000,-500.0,0.00014999,2]
[424762655,1781133046000,-500.0,0.00014999,2]
[424762658,1781133046000,-500.0,0.00014999,2]
[424762663,1781133046000,-500.0,0.00014999,2]
[424762659,1781133046000,-500.0,0.00014999,2]
[424762664,1781133046000,-500.0,0.00014999,2]
[424762661,1781133046000,-500.0,0.00014999,2]
[424762662,1781133046000,-500.0,0.00014999,2]
[424762660,1781133046000,-500.0,0.00014999,2]
[424762665,1781133046000,-500.0,0.00014999,2]
[424762666,1781133046000,-500.0,0.00014999,2]
[424762667,1781133046000,-500.0,0.00014999,2]
[424762668,1781133046000,-500.0,0.00014999,2]
[424762671,1781133046000,-500.0,0.00014999,2]
[424762669,1781133046000,-500.0,0.00014999,2]
[424762670,1781133046000,-500.0,0.00014999,2]
[424762672,1781133046000,-500.0,0.00014999,2]
[424762674,1781133046000,-500.0,0.00014999,2]
[424762677,1781133046000,-500.0,0.00014999,2]
[424762673,1781133046000,-500.0,0.00014999,2]
[424762676,1781133046000,-500.0,0.00014999,2]
[424762705,1781133046000,-500.0,0.00014999,2]
[424762722,1781133046000,-741.66,0.00014999,2]
[424762708,1781133046000,-500.0,0.00014999,2]
[424762737,1781133046000,-500.0,0.00014999,2]
[424762740,1781133046000,-500.0,0.00014999,2]
[424762739,1781133046000,-500.0,0.00014999,2]
[424762741,1781133046000,-500.0,0.00014999,2]
[424762742,1781133046000,-500.0,0.00014999,2]
[424762743,1781133046000,-356.71071378,0.00014999,2]
[424762744,1781133046000,-2508.65,0.00014999,2]
[424762745,1781133046000,-2508.65,0.00014999,2]
[424762751,1781133046000,-2508.65,0.00014999,2]
[424762753,1781133046000,-2508.65,0.00014999,2]
[424762747,1781133046000,-2508.65,0.00014999,2]
[424762738,1781133046000,-500.0,0.00014999,2]
[424762758,1781133046000,-2508.65,0.00014999,2]
[424762757,1781133046000,-2508.65,0.00014999,2]
[424762749,1781133046000,-2508.65,0.00014999,2]
[424762760,1781133046000,-2508.65,0.00014999,2]
[424762759,1781133046000,-2508.65,0.00014999,2]
[424762761,1781133046000,-2508.65,0.00014999,2]
[424762762,1781133046000,-2508.65,0.00014999,2]
[424762763,1781133046000,-2508.65,0.00014999,2]
[424762766,1781133046000,-666.0,0.00014999,2]
[424762764,1781133046000,-2508.85,0.00014999,2]
[424762765,1781133046000,-300.0,0.00014999,2]
[424762706,1781133046000,-500.0,0.00014999,2]
[424762755,1781133046000,-2508.65,0.00014999,2]
[424762735,1781133046000,-741.66,0.00014999,2]
[424762767,1781133046000,-300.0,0.00014999,2]
[424762734,1781133046000,-741.66,0.00014999,2]
[424762709,1781133046000,-500.0,0.00014999,2]
[424762711,1781133046000,-500.0,0.00014999,2]
[424762710,1781133046000,-500.0,0.00014999,2]
[424762712,1781133046000,-170.38526273,0.00014999,2]
[424762713,1781133046000,-500.0,0.00014999,2]
[424762716,1781133046000,-500.0,0.00014999,2]
[424762720,1781133046000,-500.0,0.00014999,2]
[424762736,1781133046000,-741.70275029,0.00014999,2]
[424762721,1781133046000,-741.66,0.00014999,2]
[424762715,1781133046000,-500.0,0.00014999,2]
[424762768,1781133046000,-666.0,0.00014999,2]
[424762719,1781133046000,-500.0,0.00014999,2]
[424762717,1781133046000,-500.0,0.00014999,2]
[424762718,1781133046000,-500.0,0.00014999,2]
[424762733,1781133046000,-741.66,0.00014999,2]
[424762714,1781133046000,-500.0,0.00014999,2]
[424762732,1781133046000,-741.66,0.00014999,2]
[424762730,1781133046000,-741.66,0.00014999,2]
[424762729,1781133046000,-741.66,0.00014999,2]
[424762726,1781133046000,-741.66,0.00014999,2]
[424762731,1781133046000,-741.66,0.00014999,2]
[424762727,1781133046000,-741.66,0.00014999,2]
[424762725,1781133046000,-741.66,0.00014999,2]
[424762724,1781133046000,-741.66,0.00014999,2]
[424762723,1781133046000,-741.66,0.00014999,2]
[424762728,1781133046000,-741.66,0.00014999,2]
[424762805,1781133047000,-191.7390802,0.00016,2]
[424762806,1781133047000,-4099.0069874,0.000161,2]
[424762807,1781133047000,-980.82664043,0.0001611,15]
[424762803,1781133047000,-153.77,0.00015914,2]
[424762801,1781133047000,-4099.0069874,0.000158,2]
[424762804,1781133047000,-300.0,0.00016,2]
[424762802,1781133047000,-4099.0069874,0.000159,2]
[424762799,1781133047000,-1613.0535,0.00015726,2]
[424762798,1781133047000,-290.848977,0.0001566,2]
[424762800,1781133047000,-214.715923,0.00015778,2]
[424762808,1781133047000,-4099.0069874,0.000162,2]
[424762822,1781133047000,-151.0,0.00016438,2]
[424762811,1781133047000,-2000.0,0.00016369,2]
[424762814,1781133047000,-158.32293482,0.00016438,2]
[424762810,1781133047000,-168.6138294,0.00016359,2]
[424762812,1781133047000,-4099.0069874,0.000164,2]
[424762813,1781133047000,-382.1,0.00016438,2]
[424762815,1781133047000,-166.14376626,0.00016438,2]
[424762816,1781133047000,-167.02116472,0.00016438,2]
[424762819,1781133047000,-151.0,0.00016438,2]
[424762821,1781133047000,-151.0,0.00016438,2]
[424762823,1781133047000,-151.0,0.00016438,2]
[424762795,1781133047000,-302.090843,0.00015582,2]
[424762809,1781133047000,-1672.7364795,0.00016274,2]
[424762797,1781133047000,-4099.0069874,0.000156,2]
[424762782,1781133047000,-150.0,0.00015,2]
[424762792,1781133047000,-249.59191774,0.00015399,2]
[424762817,1781133047000,-174.19406288,0.00016438,2]
[424762771,1781133047000,-666.0,0.00014999,2]
[424762769,1781133047000,-300.0,0.00014999,2]
[424762772,1781133047000,-300.0,0.00014999,2]
[424762774,1781133047000,-300.0,0.00014999,2]
[424762773,1781133047000,-300.0,0.00014999,2]
[424762776,1781133047000,-666.0,0.00014999,2]
[424762775,1781133047000,-300.0,0.00014999,2]
[424762779,1781133047000,-9212653.88083418,0.00015,2]
[424762780,1781133047000,-118942.59993775,0.00015,2]
[424762781,1781133047000,-452.13,0.00015,2]
[424762796,1781133047000,-256.0,0.000156,2]
[424762777,1781133047000,-256.0,0.00015,2]
[424762783,1781133047000,-2000.0,0.00015005,2]
[424762784,1781133047000,-1252.0,0.00015026,2]
[424762786,1781133047000,-1555.5,0.00015178,2]
[424762790,1781133047000,-256.0,0.000153,2]
[424762785,1781133047000,-1014.36,0.00015142,2]
[424762791,1781133047000,-4099.0069874,0.000153,2]
[424762787,1781133047000,-256.0,0.000152,2]
[424762793,1781133047000,-256.0,0.000155,2]
[424762794,1781133047000,-4099.0069874,0.000155,2]
[424762789,1781133047000,-153.77,0.00015222,2]
[424762788,1781133047000,-4099.0069874,0.000152,2]
[424762778,1781133047000,-4099.0069874,0.00015,2]
[424762820,1781133047000,-151.0,0.00016438,2]
[424762770,1781133047000,-300.0,0.00014999,2]
[424762824,1781133047000,-151.0,0.00016438,2]
[424762854,1781133047000,-693.0,0.00018,2]
[424762858,1781133047000,-1092.33,0.00018315,2]
[424762857,1781133047000,-166.08642978,0.000182,2]
[424762855,1781133047000,-350.0,0.00018,2]
[424762856,1781133047000,-3620.0,0.00018147,2]
[424762859,1781133047000,-166.08642978,0.000184,2]
[424762860,1781133047000,-382.1,0.0001841,2]
[424762861,1781133047000,-1934.38338736,0.00018466,2]
[424762862,1781133047000,-300.0,0.00018532,2]
[424762864,1781133047000,-300.0,0.00018532,2]
[424762869,1781133047000,-300.0,0.00018532,2]
[424762852,1781133047000,-227.45964902,0.00018,2]
[424762868,1781133047000,-300.0,0.00018532,2]
[424762870,1781133047000,-372.91906083,0.00018532,2]
[424762866,1781133047000,-300.0,0.00018532,2]
[424762865,1781133047000,-666.0,0.00018532,2]
[424762867,1781133047000,-300.0,0.00018532,2]
[424762871,1781133047000,-168.6138294,0.00018593,2]
[424762873,1781133047000,-452.13,0.000187,2]
[424762872,1781133047000,-693.0,0.00018626,2]
[424762874,1781133047000,-976.63458183,0.00018914,2]
[424762875,1781133047000,-150.126,0.00018924,2]
[424762876,1781133047000,-150.0,0.00018924,2]
[424762877,1781133047000,-300.0,0.00018999,2]
[424762863,1781133047000,-666.0,0.00018532,2]
[424762851,1781133047000,-7872.34457716,0.00018,2]
[424762818,1781133047000,-151.0,0.00016438,2]
[424762853,1781133047000,-166.08642978,0.00018,2]
[424762825,1781133047000,-151.0,0.00016438,2]
[424762827,1781133047000,-2129.0,0.00016509,2]
[424762826,1781133047000,-452.13,0.000165,2]
[424762828,1781133047000,-1014.36,0.00016518,2]
[424762829,1781133047000,-153.77,0.00016606,2]
[424762831,1781133047000,-976.63458183,0.00016857,2]
[424762835,1781133047000,-168.6138294,0.00017476,2]
[424762850,1781133047000,-300.0,0.00017999,2]
[424762834,1781133047000,-1798.80895522,0.0001737,2]
[424762833,1781133047000,-1095.13974902,0.00017086,2]
[424762832,1781133047000,-2451.56190862,0.00016857,2]
[424762836,1781133047000,-300.0,0.00017727,2]
[424762830,1781133047000,-1734.62772924,0.00016822,2]
[424762839,1781133047000,-6418.63,0.00017728,2]
[424762837,1781133047000,-300.0,0.00017727,2]
[424762847,1781133047000,-300.0,0.00017999,2]
[424762848,1781133047000,-300.0,0.00017999,2]
[424762846,1781133047000,-300.0,0.00017999,2]
[424762838,1781133047000,-300.0,0.00017727,2]
[424762849,1781133047000,-300.0,0.00017999,2]
[424762845,1781133047000,-1865.36488656,0.00017918,2]
[424762841,1781133047000,-936.57,0.00017728,2]
[424762843,1781133047000,-22934.29,0.00017728,2]
[424762840,1781133047000,-299.99,0.00017728,4]
[424762842,1781133047000,-9999.99,0.00017728,2]
[424762844,1781133047000,-150.99,0.00017728,2]
[424762914,1781133048000,-500.0,0.00019562,2]
[424762915,1781133048000,-151.0,0.00019562,2]
[424762925,1781133048000,-151.0,0.00019562,2]
[424762912,1781133048000,-2080.17592889,0.00019562,2]
[424762906,1781133048000,-151.0,0.00019562,2]
[424762913,1781133048000,-151.0,0.00019562,2]
[424762907,1781133048000,-151.0,0.00019562,2]
[424762908,1781133048000,-500.0,0.00019562,2]
[424762909,1781133048000,-151.0,0.00019562,2]
[424762910,1781133048000,-151.0,0.00019562,2]
[424762916,1781133048000,-500.0,0.00019562,2]
[424762931,1781133048000,-151.0,0.00019562,2]
[424762918,1781133048000,-500.0,0.00019562,2]
[424762919,1781133048000,-151.0,0.00019562,2]
[424762920,1781133048000,-500.0,0.00019562,2]
[424762921,1781133048000,-151.0,0.00019562,2]
[424762923,1781133048000,-151.0,0.00019562,2]
[424762922,1781133048000,-500.0,0.00019562,2]
[424762924,1781133048000,-500.0,0.00019562,2]
[424762926,1781133048000,-500.0,0.00019562,2]
[424762928,1781133048000,-500.0,0.00019562,2]
[424762927,1781133048000,-151.0,0.00019562,2]
[424762929,1781133048000,-151.0,0.00019562,2]
[424762911,1781133048000,-500.0,0.00019562,2]
[424762917,1781133048000,-151.0,0.00019562,2]
[424762905,1781133048000,-151.0,0.00019562,2]
[424762892,1781133048000,-300.0,0.00019499,2]
[424762904,1781133048000,-151.0,0.00019562,2]
[424762930,1781133048000,-500.0,0.00019562,2]
[424762878,1781133048000,-682.36022223,0.00018999,2]
[424762881,1781133048000,-300.0,0.00018999,2]
[424762880,1781133048000,-300.0,0.00018999,2]
[424762882,1781133048000,-274469.88356788,0.00019,2]
[424762884,1781133048000,-387.30936458,0.0001912,2]
[424762883,1781133048000,-2005.9555727,0.00019014,2]
[424762887,1781133048000,-1125.0,0.00019475,2]
[424762888,1781133048000,-585.64,0.00019478,2]
[424762886,1781133048000,-693.0,0.00019253,3]
[424762885,1781133048000,-160.93281423,0.00019178,2]
[424762903,1781133048000,-151.0,0.00019562,2]
[424762889,1781133048000,-300.0,0.00019499,2]
[424762890,1781133048000,-300.0,0.00019499,2]
[424762894,1781133048000,-126067.52041668,0.000195,2]
[424762895,1781133048000,-300.0,0.00019535,2]
[424762896,1781133048000,-300.0,0.00019535,2]
[424762893,1781133048000,-300.0,0.00019499,2]
[424762899,1781133048000,-300.0,0.00019561,2]
[424762901,1781133048000,-151.0,0.00019562,2]
[424762897,1781133048000,-10578.68411827,0.00019536,2]
[424762898,1781133048000,-300.0,0.00019561,2]
[424762900,1781133048000,-151.0,0.00019562,2]
[424762902,1781133048000,-151.0,0.00019562,2]
[424762891,1781133048000,-300.0,0.00019499,2]
[424762879,1781133048000,-300.0,0.00018999,2]
[424762936,1781133048000,-693.0,0.00019879,3]
[424762935,1781133048000,-200.0,0.00019839,2]
[424762963,1781133048000,-3053.0,0.0002,2]
[424762959,1781133048000,-347.0,0.0002,2]
[424762968,1781133048000,-652.2631735,0.000204,2]
[424762966,1781133048000,-652.2631735,0.000202,2]
[424762962,1781133048000,-2000.0,0.0002,7]
[424762967,1781133048000,-382.1,0.00020381,2]
[424762969,1781133048000,-1125.0,0.00020501,2]
[424762970,1781133048000,-693.0,0.00020505,4]
[424762973,1781133048000,-1240.909,0.00020722,2]
[424762975,1781133048000,-3661.361,0.00020745,2]
[424762972,1781133048000,-2236.95670847,0.00020658,2]
[424762965,1781133048000,-330.48607955,0.00020177,2]
[424762979,1781133048000,-1358.0,0.00020842,2]
[424762976,1781133048000,-6075.0,0.00020745,2]
[424762971,1781133048000,-652.2631735,0.000206,2]
[424762978,1781133048000,-452.13,0.000208,2]
[424762977,1781133048000,-652.2631735,0.000208,2]
[424762981,1781133048000,-1274.0,0.00020842,2]
[424762982,1781133048000,-383.0,0.00020842,2]
[424762983,1781133048000,-1010.0,0.00021,2]
[424762985,1781133048000,-159.0,0.00021,2]
[424762984,1781133048000,-222.0,0.00021,2]
[424762986,1781133048000,-589.0,0.00021,2]
[424762932,1781133048000,-151.0,0.00019562,2]
[424762980,1781133048000,-3556.0,0.00020842,2]
[424762964,1781133048000,-2157.14243826,0.0002011,2]
[424762974,1781133048000,-452.269,0.00020745,2]
[424762961,1781133048000,-269.0,0.0002,2]
[424762960,1781133048000,-1170.68,0.0002,2]
[424762933,1781133048000,-151.0,0.00019562,2]
[424762937,1781133048000,-1095.13974902,0.00019895,2]
[424762938,1781133048000,-2700.0,0.000199,7]
[424762939,1781133048000,-1600.0,0.00019939,2]
[424762940,1781133048000,-300.0,0.00019999,2]
[424762945,1781133048000,-190.0,0.0002,2]
[424762942,1781133048000,-222.0,0.0002,2]
[424762941,1781133048000,-1010.0,0.0002,2]
[424762946,1781133048000,-185.0,0.0002,2]
[424762947,1781133048000,-1495.58100289,0.0002,5]
[424762943,1781133048000,-159.0,0.0002,2]
[424762934,1781133048000,-168.61382943,0.0001971,2]
[424762948,1781133048000,-800.0,0.0002,2]
[424762944,1781133048000,-589.0,0.0002,2]
[424762952,1781133048000,-250.0,0.0002,2]
[424762956,1781133048000,-297.95,0.0002,2]
[424762957,1781133048000,-345.0,0.0002,2]
[424762951,1781133048000,-406.0,0.0002,2]
[424762958,1781133048000,-400.0,0.0002,2]
[424762953,1781133048000,-652.2631735,0.0002,2]
[424762955,1781133048000,-12940.2,0.0002,2]
[424762949,1781133048000,-23187.66759273,0.0002,20]
[424762954,1781133048000,-3681.0,0.0002,2]
[424762950,1781133048000,-231.0,0.0002,2]
[424763022,1781133049000,-231.0,0.00022,2]
[424763020,1781133049000,-800.0,0.00022,2]
[424763019,1781133049000,-185.0,0.00022,2]
[424763024,1781133049000,-250.0,0.00022,2]
[424763023,1781133049000,-406.0,0.00022,2]
[424763046,1781133049000,-2494.55939288,0.00022302,2]
[424763017,1781133049000,-589.0,0.00022,2]
[424763016,1781133049000,-168.0,0.00022,2]
[424763018,1781133049000,-190.0,0.00022,2]
[424763021,1781133049000,-377508.1722672,0.00022,4]
[424763025,1781133049000,-169.615975,0.00022,2]
[424763031,1781133049000,-870.942597,0.00022,2]
[424763026,1781133049000,-169.615975,0.00022,2]
[424763028,1781133049000,-169.615975,0.00022,2]
[424763029,1781133049000,-151.0,0.00022,2]
[424763030,1781133049000,-870.942597,0.00022,2]
[424763035,1781133049000,-671.0,0.00022,2]
[424763033,1781133049000,-870.942597,0.00022,2]
[424763034,1781133049000,-151.0,0.00022,2]
[424763032,1781133049000,-870.942597,0.00022,2]
[424763036,1781133049000,-345.0,0.00022,2]
[424763037,1781133049000,-193.54,0.00022,2]
[424763015,1781133049000,-222.0,0.00022,2]
[424763027,1781133049000,-169.615975,0.00022,2]
[424763011,1781133049000,-500.0,0.00022,3]
[424762989,1781133049000,-800.0,0.00021,2]
[424763014,1781133049000,-1010.0,0.00022,2]
[424762988,1781133049000,-185.0,0.00021,2]
[424762992,1781133049000,-250.0,0.00021,2]
[424762991,1781133049000,-406.0,0.00021,2]
[424762987,1781133049000,-190.0,0.00021,2]
[424762990,1781133049000,-231.0,0.00021,2]
[424762993,1781133049000,-345.0,0.00021,2]
[424762995,1781133049000,-222.47177398,0.00021,3]
[424762996,1781133049000,-269.0,0.00021,2]
[424762994,1781133049000,-347.0,0.00021,2]
[424762997,1781133049000,-693.0,0.00021131,4]
[424763001,1781133049000,-2405.55389863,0.00021754,2]
[424763013,1781133049000,-500.0,0.00022,3]
[424763002,1781133049000,-693.0,0.00021758,5]
[424763000,1781133049000,-1170.68,0.00021679,2]
[424762998,1781133049000,-2319.72410669,0.00021206,2]
[424763003,1781133049000,-257.35,0.000219,7]
[424763004,1781133049000,-585.64,0.00021912,2]
[424763012,1781133049000,-500.0,0.00022,3]
[424763007,1781133049000,-269.92702899,0.00021924,2]
[424763008,1781133049000,-151.0,0.00021997,2]
[424763006,1781133049000,-150.0,0.00021918,2]
[424763009,1781133049000,-300.0,0.00021999,2]
[424763005,1781133049000,-5000.0,0.00021918,2]
[424763010,1781133049000,-300.0,0.00021999,2]
[424762999,1781133049000,-1125.0,0.0002158,2]
[424763043,1781133049000,-151.0,0.00022,2]
[424763058,1781133049000,-589.0,0.00023,2]
[424763039,1781133049000,-151.0,0.00022,2]
[424763070,1781133049000,-150.0,0.00023014,2]
[424763072,1781133049000,-2504.44,0.00023087,2]
[424763073,1781133049000,-217.21686694,0.00023178,3]
[424763075,1781133049000,-2682.57183977,0.00023398,2]
[424763074,1781133049000,-1170.68,0.00023358,7]
[424763077,1781133049000,-194.81124461,0.00023641,3]
[424763078,1781133049000,-1227.0,0.00023722,2]
[424763076,1781133049000,-693.0,0.00023636,7]
[424763079,1781133049000,-3643.0,0.00023745,2]
[424763084,1781133049000,-382.0,0.00023842,2]
[424763081,1781133049000,-159.83293482,0.00023791,2]
[424763086,1781133049000,-1087.0,0.00023905,7]
[424763082,1781133049000,-1358.0,0.00023842,2]
[424763080,1781133049000,-6075.0,0.00023745,2]
[424763083,1781133049000,-3556.0,0.00023842,2]
[424763088,1781133049000,-1010.0,0.00024,2]
[424763085,1781133049000,-1274.0,0.00023842,2]
[424763089,1781133049000,-222.0,0.00024,2]
[424763091,1781133049000,-190.0,0.00024,2]
[424763090,1781133049000,-589.0,0.00024,2]
[424763093,1781133049000,-800.0,0.00024,2]
[424763092,1781133049000,-185.0,0.00024,2]